fUST/lending_fUST_20241018
["ID","MTS","AMOUNT","RATE_DAILY","PERIOD"]
[340441312,1729245089611,-1037.26,0.00015342,2]
[340441313,1729245089620,-795.76,0.00015342,2]
[340441314,1729245089629,-511.92521544,0.00015342,2]
[340441315,1729245089639,-500.0,0.00015342,2]
[340441316,1729245089648,-500.0,0.00015342,2]
[340441317,1729245089658,-510.56391837,0.00015342,2]
[340441318,1729245089667,-350.8768186,0.00015342,2]
[340441319,1729245089677,-500.0,0.00015342,2]
[340441320,1729245089687,-1051.27,0.00015342,2]
[340441321,1729245089696,-500.0,0.00015342,2]
[340441322,1729245089706,-500.0,0.00015342,2]
[340441323,1729245089716,-598.70949378,0.00015342,2]
[340441324,1729245089726,-602.00968822,0.00015342,2]
[340441325,1729245089735,-1007.24,0.00015342,2]
[340441326,1729245089745,-500.0,0.00015342,2]
[340441327,1729245089754,-735.79,0.00015342,2]
[340441328,1729245089764,-1162.07,0.00015342,2]
[340441329,1729245089774,-500.0,0.00015342,2]
[340441330,1729245089784,-500.0,0.00015342,2]
[340441331,1729245089793,-500.0,0.00015342,2]
[340441332,1729245089803,-500.0,0.00015342,2]
[340441333,1729245089813,-500.0,0.00015342,2]
[340441334,1729245089822,-1243.95,0.00015342,2]
[340441335,1729245089831,-500.0,0.00015342,2]
[340441336,1729245089841,-500.0,0.00015342,2]
[340441337,1729245089850,-500.0,0.00015342,2]
[340441338,1729245089859,-500.0,0.00015342,2]
[340441339,1729245089869,-786.11,0.00015342,2]
[340441340,1729245089878,-500.0,0.00015342,2]
[340441341,1729245089887,-500.0,0.00015342,2]
[340441342,1729245089897,-517.29679812,0.00015342,2]
[340441343,1729245089906,-500.0,0.00015342,2]
[340441344,1729245089916,-676.43,0.00015342,2]
[340441345,1729245089925,-1523.03,0.00015342,2]
[340441346,1729245089934,-515.8067729,0.00015342,2]
[340441347,1729245089944,-1715.25,0.00015342,2]
[340441348,1729245089953,-500.0,0.00015342,2]
[340441349,1729245089962,-500.0,0.00015342,2]
[340441350,1729245090117,-500.0,0.00015342,2]
[340441351,1729245090127,-500.0,0.00015342,2]
[340441352,1729245090136,-500.0,0.00015342,2]
[340441353,1729245090145,-500.0,0.00015342,2]
[340441354,1729245090154,-500.0,0.00015342,2]
[340441355,1729245090163,-500.0,0.00015342,2]
[340441356,1729245090172,-500.0,0.00015342,2]
[340441357,1729245090182,-500.0,0.00015342,2]
[340441358,1729245090191,-500.0,0.00015342,2]
[340441359,1729245090200,-500.0,0.00015342,2]
[340441360,1729245090209,-1443.01,0.00015342,2]
[340441361,1729245090218,-500.0,0.00015342,2]
[340441362,1729245090228,-1076.09,0.00015342,2]
[340441363,1729245090238,-500.0,0.00015342,2]
[340441364,1729245090247,-500.0,0.00015342,2]
[340441365,1729245090256,-962.41,0.00015342,2]
[340441366,1729245090265,-500.0,0.00015342,2]
[340441367,1729245090275,-510.41125129,0.00015342,2]
[340441368,1729245090283,-367.21931666,0.00015342,2]
[340441369,1729245090293,-895.35,0.00015342,2]
[340441370,1729245090303,-500.0,0.00015342,2]
[340441371,1729245090313,-563.22682577,0.00015342,2]
[340441372,1729245090322,-537.77485899,0.00015342,2]
[340441373,1729245090332,-500.0,0.00015342,2]
[340441374,1729245090342,-1226.14,0.00015342,2]
[340441375,1729245090352,-1037.27,0.00015342,2]
[340441376,1729245090361,-751.72,0.00015342,2]
[340441377,1729245090370,-500.0,0.00015342,2]
[340441378,1729245090379,-500.0,0.00015342,2]
[340441379,1729245090388,-1070.53,0.00015342,2]
[340441380,1729245090398,-500.0,0.00015342,2]
[340441381,1729245090407,-500.0,0.00015342,2]
[340441382,1729245090417,-827.18,0.00015342,2]
[340441383,1729245090426,-500.0,0.00015342,2]
[340441384,1729245090435,-500.0,0.00015342,2]
[340441385,1729245090444,-500.0,0.00015342,2]
[340441386,1729245090453,-586.86,0.00015342,2]
[340441387,1729245090462,-500.0,0.00015342,2]
[340441388,1729245090471,-970.57,0.00015342,2]
[340441389,1729245090481,-708.3,0.00015342,2]
[340441390,1729245090490,-500.0,0.00015342,2]
[340441391,1729245090499,-500.0,0.00015342,2]
[340441392,1729245090509,-1460.22,0.00015342,2]
[340441393,1729245090518,-1055.65,0.00015342,2]
[340441394,1729245090527,-604.42,0.00015342,2]
[340441395,1729245090536,-500.0,0.00015342,2]
[340441396,1729245090546,-168.42912631,0.00015342,2]
[340441397,1729245090555,-500.0,0.00015342,2]
[340441398,1729245090564,-551.86,0.00015342,2]
[340441399,1729245090573,-1084.78,0.00015342,2]
[340441400,1729245090583,-500.0,0.00015342,2]
[340441401,1729245090591,-500.0,0.00015342,2]
[340441402,1729245090601,-859.29,0.00015342,2]
[340441403,1729245090610,-500.0,0.00015342,2]
[340441404,1729245090619,-522.45397585,0.00015342,2]
[340441405,1729245090628,-500.0,0.00015342,2]
[340441406,1729245090637,-1043.86,0.00015342,2]
[340441407,1729245090647,-500.0,0.00015342,2]
[340441408,1729245090656,-500.0,0.00015342,2]
[340441409,1729245090666,-500.0,0.00015342,2]
[340441410,1729245090676,-500.0,0.00015342,2]
[340441411,1729245090684,-501.99116976,0.00015342,2]
[340441412,1729245090694,-781.11,0.00015342,2]
[340441413,1729245090703,-500.0,0.00015342,2]
[340441414,1729245090711,-1193.67,0.00015342,2]
[340441415,1729245090721,-500.0,0.00015342,2]
[340441416,1729245090730,-500.0,0.00015342,2]
[340441417,1729245090740,-500.0,0.00015342,2]
[340441418,1729245090749,-500.0,0.00015342,2]
[340441419,1729245090758,-1153.0,0.00015342,2]
[340441420,1729245090767,-500.0,0.00015342,2]
[340441421,1729245090777,-964.73,0.00015342,2]
[340441422,1729245090786,-500.0,0.00015342,2]
[340441423,1729245090795,-818.7,0.00015342,2]
[340441424,1729245090805,-500.0,0.00015342,2]
[340441425,1729245090814,-881.33,0.00015342,2]
[340441426,1729245090823,-500.0,0.00015342,2]
[340441427,1729245090833,-500.0,0.00015342,2]
[340441428,1729245090842,-500.0,0.00015342,2]
[340441429,1729245090852,-661.9,0.00015342,2]
[340441430,1729245090861,-500.0,0.00015342,2]
[340441431,1729245090871,-500.0,0.00015342,2]
[340441432,1729245090880,-500.0,0.00015342,2]
[340441433,1729245090889,-500.0,0.00015342,2]
[340441434,1729245090898,-211.06185389,0.00015342,2]
[340441435,1729245090907,-500.0,0.00015342,2]
[340441436,1729245090917,-500.0,0.00015342,2]
[340441437,1729245090926,-500.0,0.00015342,2]
[340441438,1729245090935,-1062.73,0.00015342,2]
[340441439,1729245090945,-500.0,0.00015342,2]
[340441440,1729245090954,-628.35387907,0.00015342,2]
[340441441,1729245090963,-1206.32,0.00015342,2]
[340441442,1729245090973,-500.0,0.00015342,2]
[340441443,1729245090982,-500.0,0.00015342,2]
[340441444,1729245090995,-1395.24,0.00015342,2]
[340441445,1729245091004,-500.0,0.00015342,2]
[340441446,1729245091013,-1145.55,0.00015342,2]
[340441447,1729245091023,-500.0,0.00015342,2]
[340441448,1729245091032,-1054.58,0.00015342,2]
[340441449,1729245091041,-500.0,0.00015342,2]
[340441450,1729245091051,-500.0,0.00015342,2]
[340441451,1729245091061,-500.0,0.00015342,2]
[340441452,1729245091070,-1000.0,0.00015342,2]
[340441453,1729245091081,-500.0,0.00015342,2]
[340441454,1729245091090,-500.0,0.00015342,2]
[340441455,1729245091100,-738.95,0.00015342,2]
[340441456,1729245091109,-1000.56,0.00015342,2]
[340441457,1729245091118,-500.0,0.00015342,2]
[340441458,1729245091128,-500.0,0.00015342,2]
[340441459,1729245091138,-1096.22,0.00015342,2]
[340441461,1729245091147,-527.88004734,0.00015342,2]
[340441462,1729245091156,-500.0,0.00015342,2]
[340441463,1729245091166,-1069.71,0.00015342,2]
[340441464,1729245091175,-1397.58,0.00015342,2]
[340441465,1729245091184,-500.0,0.00015342,2]
[340441466,1729245091193,-500.0,0.00015342,2]
[340441467,1729245091202,-500.0,0.00015342,2]
[340441468,1729245091211,-1428.87,0.00015342,2]
[340441469,1729245091221,-518.94440305,0.00015342,2]
[340441470,1729245091230,-500.0,0.00015342,2]
[340441471,1729245091239,-895.03,0.00015342,2]
[340441472,1729245091248,-3993.05,0.00015342,2]
[340441473,1729245091258,-500.0,0.00015342,2]
[340441474,1729245091267,-500.0,0.00015342,2]
[340441475,1729245091276,-500.0,0.00015342,2]
[340441476,1729245091285,-500.0,0.00015342,2]
[340441477,1729245091294,-1157.15,0.00015342,2]
[340441478,1729245091303,-500.0,0.00015342,2]
[340441479,1729245091313,-500.0,0.00015342,2]
[340441480,1729245091322,-500.0,0.00015342,2]
[340441481,1729245091332,-532.6,0.00015342,2]
[340441482,1729245091341,-1870.26,0.00015342,2]
[340441483,1729245091350,-866.7,0.00015342,2]
[340441484,1729245091359,-500.0,0.00015342,2]
[340441485,1729245091368,-730.02,0.00015342,2]
[340441486,1729245091377,-896.36,0.00015342,2]
[340441487,1729245091386,-511.49360626,0.00015342,2]
[340441488,1729245091395,-500.0,0.00015342,2]
[340441489,1729245091404,-973.26,0.00015342,2]
[340441490,1729245091414,-654.42,0.00015342,2]
[340441491,1729245091423,-562.62,0.00015342,2]
[340441492,1729245091431,-3473.75,0.00015342,2]
[340441493,1729245091440,-510.16132534,0.00015342,2]
[340441494,1729245091450,-500.0,0.00015342,2]
[340441495,1729245091459,-500.0,0.00015342,2]
[340441496,1729245091468,-500.0,0.00015342,2]
[340441497,1729245091478,-1013.32,0.00015342,2]
[340441498,1729245091487,-884.31,0.00015342,2]
[340441499,1729245091497,-500.0,0.00015342,2]
[340441500,1729245091506,-663.59,0.00015342,2]
[340441501,1729245091515,-1044.47,0.00015342,2]
[340441502,1729245091524,-500.0,0.00015342,2]
[340441503,1729245091534,-500.0,0.00015342,2]
[340441504,1729245091543,-500.0,0.00015342,2]
[340441505,1729245091552,-1124.46,0.00015342,2]
[340441506,1729245091561,-500.0,0.00015342,2]
[340441507,1729245091570,-625.68187673,0.00015342,2]
[340441508,1729245091579,-500.0,0.00015342,2]
[340441509,1729245091589,-681.61,0.00015342,2]
[340441510,1729245091598,-1167.43,0.00015342,2]
[340441511,1729245091607,-500.0,0.00015342,2]
[340441512,1729245091616,-500.0,0.00015342,2]
[340441513,1729245091625,-1087.29,0.00015342,2]
[340441514,1729245091635,-500.0,0.00015342,2]
[340441515,1729245091644,-360.44615426,0.00015342,2]
[340441516,1729245091653,-765.82,0.00015342,2]
[340441517,1729245091663,-767.62,0.00015342,2]
[340441518,1729245091673,-500.0,0.00015342,2]
[340441519,1729245091682,-500.0,0.00015342,2]
[340441520,1729245091691,-1280.97,0.00015342,2]
[340441521,1729245091701,-500.0,0.00015342,2]
[340441522,1729245091710,-500.0,0.00015342,2]
[340441523,1729245091720,-500.0,0.00015342,2]
[340441524,1729245091729,-500.0,0.00015342,2]
[340441525,1729245091738,-1114.77,0.00015342,2]
[340441526,1729245091747,-500.0,0.00015342,2]
[340441527,1729245091758,-1426.78,0.00015342,2]
[340441528,1729245091767,-500.0,0.00015342,2]
[340441529,1729245091776,-529.33672689,0.00015342,2]
[340441530,1729245091786,-500.0,0.00015342,2]
[340441531,1729245091794,-767.47,0.00015342,2]
[340441532,1729245091804,-500.0,0.00015342,2]
[340441533,1729245091813,-500.0,0.00015342,2]
[340441534,1729245091823,-500.0,0.00015342,2]
[340441535,1729245091833,-500.0,0.00015342,2]
[340441536,1729245091842,-1411.42,0.00015342,2]
[340441537,1729245091852,-617.39916084,0.00015342,2]
[340441538,1729245091861,-517.43761252,0.00015342,2]
[340441539,1729245091870,-545.45,0.00015342,2]
[340441540,1729245091879,-500.0,0.00015342,2]
[340441541,1729245091889,-500.0,0.00015342,2]
[340441542,1729245091898,-788.01,0.00015342,2]
[340441543,1729245091908,-500.0,0.00015342,2]
[340441544,1729245091918,-184.09592714,0.00015342,2]
[340441545,1729245091927,-500.0,0.00015342,2]
[340441546,1729245091936,-2395.03,0.00015342,2]
[340441547,1729245091946,-500.0,0.00015342,2]
[340441548,1729245091955,-1150.17,0.00015342,2]
[340441549,1729245091964,-500.0,0.00015342,2]
[340441550,1729245091974,-536.26,0.00015342,2]
[340441551,1729245091983,-500.0,0.00015342,2]
[340441552,1729245091996,-500.0,0.00015342,2]
[340441553,1729245092005,-500.0,0.00015342,2]
[340441554,1729245092014,-500.0,0.00015342,2]
[340441555,1729245092024,-515.54810045,0.00015342,2]
[340441556,1729245092033,-513.66159476,0.00015342,2]
[340441557,1729245092043,-500.0,0.00015342,2]
[340441558,1729245092052,-1909.08,0.00015342,2]
[340441559,1729245092061,-2396.15,0.00015342,2]
[340441560,1729245092083,-856.8,0.00015342,2]
[340441561,1729245092092,-500.0,0.00015342,2]
[340441562,1729245092101,-544.56775102,0.00015342,2]
[340441563,1729245092111,-182.55001723,0.00015342,2]
[340441564,1729245092124,-500.0,0.00015342,2]
[340441565,1729245092134,-500.0,0.00015342,2]
[340441566,1729245092143,-500.0,0.00015342,2]
[340441567,1729245092152,-500.0,0.00015342,2]
[340441568,1729245092162,-500.0,0.00015342,2]
[340441569,1729245092171,-500.0,0.00015342,2]
[340441570,1729245092180,-500.0,0.00015342,2]
[340441571,1729245092189,-500.0,0.00015342,2]
[340441572,1729245092199,-837.39,0.00015342,2]
[340441573,1729245092207,-1324.5,0.00015342,2]
[340441574,1729245092216,-500.0,0.00015342,2]
[340441575,1729245092225,-500.0,0.00015342,2]
[340441576,1729245092235,-500.0,0.00015342,2]
[340441577,1729245092244,-500.0,0.00015342,2]
[340441578,1729245092253,-500.0,0.00015342,2]
[340441579,1729245092263,-1031.32,0.00015342,2]
[340441580,1729245092272,-500.0,0.00015342,2]
[340441581,1729245092281,-521.88017867,0.00015342,2]
[340441582,1729245092290,-2844.57,0.00015342,2]
[340441583,1729245092298,-500.0,0.00015342,2]
[340441584,1729245092307,-969.83,0.00015342,2]
[340441585,1729245092316,-603.41,0.00015342,2]
[340441586,1729245092326,-500.0,0.00015342,2]
[340441587,1729245092336,-2511.79,0.00015342,2]
[340441588,1729245092345,-2957.21,0.00015342,2]
[340441589,1729245092354,-500.0,0.00015342,2]
[340441590,1729245092364,-401.26120137,0.00015342,2]
[340441591,1729245092373,-825.51,0.00015342,2]
[340441592,1729245092382,-523.58778943,0.00015342,2]
[340441593,1729245092391,-1311.74,0.00015342,2]
[340441594,1729245092401,-500.0,0.00015342,2]
[340441595,1729245092410,-1111.47,0.00015342,2]
[340441596,1729245092419,-500.0,0.00015342,2]
[340441597,1729245092428,-2679.77,0.00015342,2]
[340441598,1729245092437,-500.0,0.00015342,2]
[340441599,1729245092447,-500.0,0.00015342,2]
[340441600,1729245092456,-1031.42,0.00015342,2]
[340441601,1729245092466,-500.0,0.00015342,2]
[340441602,1729245092475,-505.77060032,0.00015342,2]
[340441603,1729245092484,-12162.79,0.00015342,2]
[340441604,1729245092494,-500.0,0.00015342,2]
[340441605,1729245092503,-550.29,0.00015342,2]
[340441606,1729245092650,-930.26,0.00015342,2]
[340441607,1729245092660,-1897.2,0.00015342,2]
[340441608,1729245092670,-500.0,0.00015342,2]
[340441609,1729245092679,-629.97009701,0.00015342,2]
[340441610,1729245092689,-500.0,0.00015342,2]
[340441611,1729245092698,-878.22,0.00015342,2]
[340441612,1729245092708,-957.88,0.00015342,2]
[340441613,1729245092717,-500.0,0.00015342,2]
[340441614,1729245092726,-927.39,0.00015342,2]
[340441615,1729245092735,-937.09,0.00015342,2]
[340441616,1729245092744,-500.0,0.00015342,2]
[340441617,1729245092753,-1899.07,0.00015342,2]
[340441618,1729245092762,-500.0,0.00015342,2]
[340441619,1729245092771,-500.0,0.00015342,2]
[340441620,1729245092780,-1019.75,0.00015342,2]
[340441621,1729245092790,-500.0,0.00015342,2]
[340441622,1729245092799,-500.0,0.00015342,2]
[340441623,1729245092809,-1189.31,0.00015342,2]
[340441624,1729245092818,-565.52909969,0.00015342,2]
[340441625,1729245092829,-1139.43,0.00015342,2]
[340441626,1729245092839,-2950.09,0.00015342,2]
[340441627,1729245092849,-500.0,0.00015342,2]
[340441628,1729245092858,-1270.25,0.00015342,2]
[340441629,1729245092867,-500.0,0.00015342,2]
[340441630,1729245092877,-6008.62,0.00015342,2]
[340441631,1729245092886,-500.0,0.00015342,2]
[340441632,1729245092895,-500.0,0.00015342,2]
[340441633,1729245092904,-733.35,0.00015342,2]
[340441634,1729245092914,-2190.69,0.00015342,2]
[340441635,1729245092923,-500.0,0.00015342,2]
[340441636,1729245092932,-500.0,0.00015342,2]
[340441637,1729245092943,-500.0,0.00015342,2]
[340441638,1729245092952,-878.59,0.00015342,2]
[340441639,1729245092962,-825.29,0.00015342,2]
[340441640,1729245092971,-389.68709019,0.00015342,2]
[340441641,1729245092980,-1028.34,0.00015342,2]
[340441642,1729245092994,-500.0,0.00015342,2]
[340441643,1729245093003,-1201.91,0.00015342,2]
[340441644,1729245093012,-198.26119787,0.00015342,2]
[340441645,1729245093022,-500.0,0.00015342,2]
[340441646,1729245093031,-522.45087038,0.00015342,2]
[340441647,1729245093041,-1749.48,0.00015342,2]
[340441648,1729245093051,-500.0,0.00015342,2]
[340441649,1729245093060,-966.84,0.00015342,2]
[340441650,1729245093070,-500.0,0.00015342,2]
[340441651,1729245093080,-881.76,0.00015342,2]
[340441652,1729245093090,-500.0,0.00015342,2]
[340441653,1729245093100,-1769.45,0.00015342,2]
[340441654,1729245093109,-500.0,0.00015342,2]
[340441655,1729245093119,-500.0,0.00015342,2]
[340441656,1729245093129,-2105.24,0.00015342,2]
[340441657,1729245093139,-1860.09,0.00015342,2]
[340441658,1729245093148,-1152.94,0.00015342,2]
[340441659,1729245093157,-1255.91,0.00015342,2]
[340441660,1729245093167,-500.0,0.00015342,2]
[340441661,1729245093176,-1691.98,0.00015342,2]
[340441662,1729245093185,-500.0,0.00015342,2]
[340441663,1729245093195,-500.0,0.00015342,2]
[340441664,1729245093204,-1098.67,0.00015342,2]
[340441665,1729245093214,-1725.58,0.00015342,2]
[340441666,1729245093223,-500.0,0.00015342,2]
[340441667,1729245093232,-500.0,0.00015342,2]
[340441668,1729245093242,-500.0,0.00015342,2]
[340441669,1729245093251,-587.83532775,0.00015342,2]
[340441670,1729245093260,-1142.96,0.00015342,2]
[340441671,1729245093270,-500.0,0.00015342,2]
[340441672,1729245093279,-1239.72,0.00015342,2]
[340441673,1729245093289,-500.0,0.00015342,2]
[340441674,1729245093299,-915.71,0.00015342,2]
[340441675,1729245093308,-500.0,0.00015342,2]
[340441676,1729245093318,-1461.93,0.00015342,2]
[340441677,1729245093327,-492.55252249,0.00015342,2]
[340441678,1729245093336,-2139.87,0.00015342,2]
[340441679,1729245093346,-1360.3,0.00015342,2]
[340441680,1729245093355,-500.0,0.00015342,2]
[340441681,1729245093365,-500.0,0.00015342,2]
[340441682,1729245093374,-1004.65,0.00015342,2]
[340441683,1729245093384,-520.39919612,0.00015342,2]
[340441684,1729245093394,-526.90298215,0.00015342,2]
[340441685,1729245093403,-814.29,0.00015342,2]
[340441686,1729245093413,-500.0,0.00015342,2]
[340441687,1729245093422,-500.0,0.00015342,2]
[340441688,1729245093431,-515.71231612,0.00015342,2]
[340441689,1729245093441,-1014.14,0.00015342,2]
[340441690,1729245093450,-500.0,0.00015342,2]
[340441691,1729245093460,-10684.06,0.00015342,2]
[340441692,1729245093469,-500.0,0.00015342,2]
[340441693,1729245093478,-2848.42,0.00015342,2]
[340441694,1729245093488,-9831.04,0.00015342,2]
[340441695,1729245093497,-500.0,0.00015342,2]
[340441696,1729245093507,-500.0,0.00015342,2]
[340441697,1729245093517,-500.0,0.00015342,2]
[340441698,1729245093526,-500.0,0.00015342,2]
[340441699,1729245093535,-500.0,0.00015342,2]
[340441700,1729245093545,-500.0,0.00015342,2]
[340441701,1729245093554,-1297.67,0.00015342,2]
[340441702,1729245093563,-1132.53,0.00015342,2]
[340441703,1729245093585,-1817.3,0.00015342,2]
[340441704,1729245093595,-500.0,0.00015342,2]
[340441705,1729245093604,-500.0,0.00015342,2]
[340441706,1729245093614,-2100.8,0.00015342,2]
[340441707,1729245093624,-500.0,0.00015342,2]
[340441708,1729245093634,-846.3,0.00015342,2]
[340441709,1729245093643,-500.0,0.00015342,2]
[340441710,1729245093653,-514.8026229,0.00015342,2]
[340441711,1729245093663,-879.74,0.00015342,2]
[340441712,1729245093675,-261.99555232,0.00015342,2]
[340441713,1729245093684,-1320.86,0.00015342,2]
[340441714,1729245093694,-500.0,0.00015342,2]
[340441715,1729245093703,-532.86045053,0.00015342,2]
[340441716,1729245093713,-500.0,0.00015342,2]
[340441717,1729245093722,-1019.81,0.00015342,2]
[340441718,1729245093732,-500.0,0.00015342,2]
[340441719,1729245093742,-840.9,0.00015342,2]
[340441720,1729245093752,-500.0,0.00015342,2]
[340441721,1729245093762,-500.0,0.00015342,2]
[340441722,1729245093776,-499.79608431,0.00015342,2]
[340441723,1729245093785,-534.68,0.00015342,2]
[340441724,1729245093795,-1568.55,0.00015342,2]
[340441725,1729245093805,-849.66,0.00015342,2]
[340441726,1729245093815,-508.74727299,0.00015342,2]
[340441727,1729245093824,-157.38,0.00015342,2]
[340441728,1729245093833,-500.0,0.00015342,2]
[340441729,1729245093843,-500.0,0.00015342,2]
[340441730,1729245093853,-522.64559436,0.00015342,2]
[340441731,1729245093862,-500.0,0.00015342,2]
[340441732,1729245093872,-1763.86,0.00015342,2]
[340441733,1729245093882,-636.18,0.00015342,2]
[340441734,1729245093893,-384.3228728,0.00015342,2]
[340441735,1729245093902,-554.66,0.00015342,2]
[340441736,1729245093912,-1104.89,0.00015342,2]
[340441737,1729245093921,-71991.77,0.00015342,2]
[340441738,1729245093930,-500.0,0.00015342,2]
[340441739,1729245093939,-500.0,0.00015342,2]
[340441740,1729245093949,-534.16246872,0.00015342,2]
[340441741,1729245093958,-500.0,0.00015342,2]
[340441742,1729245093968,-500.0,0.00015342,2]
[340441743,1729245093977,-500.0,0.00015342,2]
[340441744,1729245093987,-1069.99,0.00015342,2]
[340441745,1729245093998,-500.0,0.00015342,2]
[340441746,1729245094007,-8143.49,0.00015342,2]
[340441747,1729245094017,-507.68,0.00015342,2]
[340441748,1729245094026,-657.05,0.00015342,2]
[340441749,1729245094036,-922.11,0.00015342,2]
[340441750,1729245094045,-500.0,0.00015342,2]
[340441751,1729245094054,-1177.72,0.00015342,2]
[340441752,1729245094065,-500.0,0.00015342,2]
[340441753,1729245094078,-500.0,0.00015342,2]
[340441754,1729245094093,-558.29,0.00015342,2]
[340441755,1729245094103,-500.0,0.00015342,2]
[340441756,1729245094112,-1098.87,0.00015342,2]
[340441757,1729245094121,-500.0,0.00015342,2]
[340441758,1729245094131,-939.41,0.00015342,2]
[340441759,1729245094140,-500.0,0.00015342,2]
[340441760,1729245094149,-1116.8,0.00015342,2]
[340441761,1729245094158,-1215.85,0.00015342,2]
[340441762,1729245094168,-520.38101362,0.00015342,2]
[340441763,1729245094178,-1144.65,0.00015342,2]
[340441764,1729245094188,-500.0,0.00015342,2]
[340441765,1729245094197,-945.11,0.00015342,2]
[340441766,1729245094207,-898.62,0.00015342,2]
[340441767,1729245094217,-536.62992087,0.00015342,2]
[340441768,1729245094227,-500.0,0.00015342,2]
[340441769,1729245094236,-892.4,0.00015342,2]
[340441770,1729245094246,-500.0,0.00015342,2]
[340441771,1729245094255,-500.0,0.00015342,2]
[340441772,1729245094264,-500.0,0.00015342,2]
[340441773,1729245094273,-500.0,0.00015342,2]
[340441774,1729245094283,-1156.23,0.00015342,2]
[340441775,1729245094292,-500.0,0.00015342,2]
[340441776,1729245094301,-170.45055192,0.00015346,2]
[340441777,1729245094311,-150.0,0.000155,2]
[340441778,1729245094331,-150.0,0.000156,2]
[340441779,1729245094340,-150.0,0.00015603,2]
[340441780,1729245094349,-194.9041849,0.00015637,7]
[340441781,1729245094358,-925.33532054,0.0001587,2]
[340441782,1729245094367,-375.77296469,0.0001589,2]
[340441783,1729245094375,-500.0,0.0001589,2]
[340441784,1729245094384,-500.0,0.0001589,2]
[340441785,1729245094393,-500.0,0.0001589,2]
[340441786,1729245094402,-500.0,0.0001589,2]
[340441787,1729245094411,-500.0,0.0001589,2]
[340441788,1729245094421,-500.0,0.0001589,2]
[340441789,1729245094430,-500.0,0.0001589,2]
[340441790,1729245094439,-500.0,0.0001589,2]
[340441791,1729245094449,-500.0,0.0001589,2]
[340441792,1729245094458,-2919.28,0.0001589,2]
[340441793,1729245094467,-500.0,0.0001589,2]
[340441794,1729245094477,-500.0,0.0001589,2]
[340441795,1729245094486,-500.0,0.0001589,2]
[340441796,1729245094495,-500.0,0.0001589,2]
[340441797,1729245094505,-500.0,0.0001589,2]
[340441798,1729245094514,-500.0,0.0001589,2]
[340441799,1729245094523,-1214.85,0.0001589,2]
[340441800,1729245094532,-896.05,0.0001589,2]
[340441801,1729245094542,-500.0,0.0001589,2]
[340441802,1729245094551,-500.0,0.0001589,2]
[340441803,1729245094561,-1925.95,0.0001589,2]
[340441804,1729245094582,-500.0,0.0001589,2]
[340441805,1729245094591,-500.0,0.0001589,2]
[340441806,1729245094601,-500.0,0.0001589,2]
[340441807,1729245094610,-1100.96,0.0001589,2]
[340441808,1729245094619,-500.0,0.0001589,2]
[340441809,1729245094629,-500.0,0.0001589,2]
[340441810,1729245094638,-500.0,0.0001589,2]
[340441811,1729245094648,-500.0,0.0001589,2]
[340441812,1729245094657,-500.0,0.0001589,2]